Cogmind - Beta 9.4 @@@ ROGUE MODE // 2020.03.07 @ 23:55:38 Player: eldritch Result: Self-destructed Performance ------------- Evolutions (2) 1000 Regions Visited (5) 1000 Robots Destroyed (11) 55 Value Destroyed (307) 307 Prototype IDs (24) 480 Alien Tech Used (0) 0 Bonus (154) 154 TOTAL SCORE: 2996 Bonus ------- Aligned with FarCom 300 Friendly Fire -146 Cogmind --------- Core Integrity 524/550 Matter 238/300 Energy 70/540 System Corruption 0% Temperature Cool (134) Movement Treading (210) Ox2 Location -8/Materials Parts ------- > --- POWER (1) -------- Nuclear Core > --- PROPULSION (4) --- Armored Treads Aluminum Leg Aluminum Leg Improved Titanium Leg > --- UTILITY (4) ------ Large Storage Unit Large Storage Unit Compact Battery Hardlight Generator > --- WEAPON (2) ------- Electrolaser Light Cannon > --- INVENTORY (16) --- Micro Nuclear Core Armored Huge Wheel Improved Flight Unit Improved Heat Sink Long-range Terrain Scanner Hacking Suite Skeleton Box Improved Trap Extractor Electrolaser Electrolaser Grenade Launcher Heavy Missile Launcher Blade Trap Blade Trap Peak State ------------ > --- POWER ------------ Nuclear Core > --- PROPULSION ------- Armored Treads Aluminum Leg Aluminum Leg Improved Titanium Leg > --- UTILITY ---------- Large Storage Unit Large Storage Unit Compact Battery Hardlight Generator > --- WEAPON ----------- Electrolaser Light Cannon > --- INVENTORY -------- Micro Nuclear Core Armored Huge Wheel Improved Flight Unit Improved Heat Sink Long-range Terrain Scanner Hacking Suite Skeleton Box Improved Trap Extractor Electrolaser Electrolaser Grenade Launcher Heavy Missile Launcher Blade Trap Blade Trap [Rating: 28] Favorites ----------- Power Light Ion Engine Engine Light Ion Engine Power Core Micro Nuclear Core Propulsion Aluminum Leg Treads Armored Treads Leg Aluminum Leg Utility Large Storage Unit Device Hardlight Generator Storage Large Storage Unit Weapon Small Laser Energy Gun Small Laser Ballistic Gun Light Assault Rifle Ballistic Cannon Light Cannon Launcher Grenade Launcher Special Weapon Mining Laser Build | -11 -10 -10 -10 -9 -8 ------- Run | Scr Mat Min Exi Min Mat Slots Evolved 4 | . . . . . 4 Power . | . . . . . . Propulsion 2 | . . . . . 2 Utility 2 | . . . . . 2 Weapon . | . . . . . . Parts Attached 20 | . 2 4 1 3 10 Power 3 | . . . . 1 2 Engine 1 | . . . . 1 . Core 2 | . . . . . 2 Reactor . | . . . . . . Propulsion 4 | . . 1 . . 3 Treads 1 | . . . . . 1 Leg 3 | . . 1 . . 2 Wheel . | . . . . . . Hover . | . . . . . . Flight . | . . . . . . Utility 5 | . 2 . 1 . 2 Device 1 | . . . . . 1 Storage 4 | . 2 . 1 . 1 Processor . | . . . . . . Hackware . | . . . . . . Protection . | . . . . . . Artifact . | . . . . . . Weapon 8 | . . 3 . 2 3 Energy Gun 2 | . . 1 . . 1 Energy Cannon . | . . . . . . Ballistic Gun 2 | . . 1 . . 1 Ballistic Cannon 1 | . . . . . 1 Launcher 1 | . . . . 1 . Special Weapon 2 | . . 1 . 1 . Impact Weapon . | . . . . . . Slashing Weapon . | . . . . . . Piercing Weapon . | . . . . . . Special Melee Weapon . | . . . . . . Unidentified Prototypes . | . . . . . . Parts Lost 3 | . . . . 2 1 Power . | . . . . . . Propulsion 1 | . . . . 1 . Utility . | . . . . . . Weapon 2 | . . . . 1 1 Highest Loss Streak 2 | . . . . 2 1 Average Slot Usage (%) 96 | . 98 100 100 99 83 Engine 10 | . 14 14 14 14 1 Core 1 | . . . . . 7 Leg 26 | . 28 28 28 27 22 Device 1 | . . . . . 8 Storage 27 | . 26 28 28 28 26 Energy Gun 14 | . 28 16 14 14 9 Ballistic Gun 9 | . . 10 14 13 4 Naked Turns . | . . . . . . Heaviest Build 51 | 9 24 24 37 41 51 Greatest Support 40 | 20 20 20 20 20 40 Greatest Overweight (x) 4 | . 1 1 1 4 2 Average Overweight (x) 1 | . . 1 1 1 1 Largest Inventory Capacity 16 | . 10 10 16 16 16 Average Capacity 12 | . 7 10 12 16 16 Most Carried 16 | . 8 10 12 16 16 Average Carried 11 | . 6 9 10 15 15 Final Capacity 16 | 6 10 10 16 16 16 Final Carried 15 | 6 8 10 12 15 15 Class Distribution -------------------- 100% | Mutant Dominant Class ---------------- Mutant | -10/Materials Mutant | -10/Mines Mutant | -10/Exiles Mutant | -9/Mines Mutant | -8/Materials Resources | -11 -10 -10 -10 -9 -8 ----------- Run | Scr Mat Min Exi Min Mat Matter Collected 563 | 200 . 226 10 10 117 Remotely . | . . . . . . Salvage Created 367 | . . 269 . 20 78 Parts 13 | . . 9 . . 4 Haulers Intercepted . | . . . . . . Recyclers Shooed . | . . . . . . Parts Field Recycled . | . . . . . . Retrieved Matter . | . . . . . . Parts Self-Destructed . | . . . . . . Prevented . | . . . . . . Kills | -11 -10 -10 -10 -9 -8 ------- Run | Scr Mat Min Exi Min Mat Combat Hostiles Destroyed 8 | . . 6 . . 2 Guns 8 | . . 6 . . 2 Classes Destroyed 4 | . . 2 . . 2 Tunneler 1 | . . 1 . . . Operator 1 | . . . . . 1 Swarmer 1 | . . . . . 1 Grunt 7 | . . 6 . . 1 Thug 1 | . . . . 1 . Best Kill Streak 4 | . . 4 . . 1 Combat Bots Only 4 | . . 4 . . 1 Max Kills in Single Turn 1 | . . 1 . 1 1 Gunslinging . | . . . . . . Exploded . | . . . . . . Melee . | . . . . . . Uniques/NPCs Destroyed . | . . . . . . Combat | -11 -10 -10 -10 -9 -8 -------- Run | Scr Mat Min Exi Min Mat Damage Taken 777 | . . 119 . 354 304 Core 83 | . . 10 . 47 26 Absorbed by Shields 93 | . . . . . 93 Core Remaining (%) 88 | 100 . . . 77 . Volleys Fired 60 | . 3 24 . 5 28 Largest 2 | . 2 2 . 1 2 Hottest 100 | . 80 100 . 100 98 Shots Fired 109 | . 6 42 . 5 56 Gun 89 | . 6 36 . . 47 Cannon 9 | . . . . . 9 Launcher 1 | . . . . 1 . Special 10 | . . 6 . 4 . Kinetic 44 | . . 16 . . 28 Thermal 64 | . 6 26 . 4 28 Explosive 1 | . . . . 1 . Electromagnetic . | . . . . . . Robot Hit Streak 14 | . 2 12 . . 14 Robot Miss Streak 4 | . 4 1 . . 4 Penetration Max . | . . . . . . Secondary Targets . | . . . . . . Shots Hit Robots 66 | . 2 28 . . 36 Core Hits 28 | . . 15 . 1 12 Critical Hits . | . . . . . . Critical Kills . | . . . . . . Critical Parts Destroyed . | . . . . . . Melee Attacks . | . . . . . . Impact . | . . . . . . Slashing . | . . . . . . Piercing . | . . . . . . Sneak Attacks . | . . . . . . Combat Hostiles . | . . . . . . Follow-up Attacks . | . . . . . . Damage Inflicted 823 | . 20 275 . 35 493 Guns 749 | . 20 275 . . 454 Cannons 39 | . . . . . 39 Explosions 35 | . . . . 35 . Melee . | . . . . . . Ramming . | . . . . . . Kinetic 228 | . . 71 . . 157 Thermal 560 | . 20 204 . . 336 Explosive 35 | . . . . 35 . Electromagnetic . | . . . . . . Impact . | . . . . . . Slashing . | . . . . . . Piercing . | . . . . . . Highest Corruption 5 | . . . . 5 . Average Corruption 5 | . . . . 5 . Corruption Purged . | . . . . . . Effects 1 | . . . . 1 . Matter Fused 1 | . . . . 1 . Overload Shots . | . . . . . . Overflow Damage 18 | . . . . . 18 Projectiles 18 | . . . . . 18 Explosions . | . . . . . . Melee . | . . . . . . Knockbacks . | . . . . . . Impact . | . . . . . . Kinetic . | . . . . . . Secondary . | . . . . . . Self-Inflicted Damage 42 | . . . . 42 . Shots 1 | . . . . 1 . Rammed . | . . . . . . Targets Rammed . | . . . . . . Kicked . | . . . . . . Crushed . | . . . . . . Highest Temperature 174 | . 36 70 . 22 174 Average Temperature 41 | . 18 19 . 11 69 Received Heat Transfer 171 | . . 66 . . 105 Siege Activations . | . . . . . . Robots Corrupted . | . . . . . . Combat Hostiles . | . . . . . . Parts Fried . | . . . . . . Impact Corruptions . | . . . . . . Robots Melted . | . . . . . . Combat Hostiles . | . . . . . . Parts Melted 1 | . . 1 . . . Heat Transferred 1240 | . 50 450 . . 740 Parts Sabotaged . | . . . . . . Parts Stolen . | . . . . . . Parts Stripped . | . . . . . . Power Chain Reactions . | . . . . . . Missiles Intercepted . | . . . . . . Alert | -11 -10 -10 -10 -9 -8 ------- Run | Scr Mat Min Exi Min Mat Peak Influence 90 | . 8 90 . 9 35 Average Influence 8 | . 2 15 . 2 6 Maximum Alert Level . | . . . . . . Low Security (%) 100 | . 100 100 . 100 100 Level 1 . | . . . . . . Level 2 . | . . . . . . Level 3 . | . . . . . . Level 4 . | . . . . . . Level 5 . | . . . . . . High Security . | . . . . . . Max Security . | . . . . . . Squads Dispatched 2 | . 1 . . . 1 Investigation . | . . . . . . Extermination . | . . . . . . Reinforcement 2 | . 1 . . . 1 Assault . | . . . . . . Garrison . | . . . . . . Intercept . | . . . . . . Construction Impeded . | . . . . . . Haulers Reinforced . | . . . . . . Stealth | -11 -10 -10 -10 -9 -8 --------- Run | Scr Mat Min Exi Min Mat Distress Signals 1 | . . 1 . . . Communications Jammed . | . . . . . . Distress Signals . | . . . . . . Times Spotted 30 | . 5 9 . . 16 Peak Tracking Total 5 | . 3 3 . . 5 Tactical Retreats 3 | . . 2 . . 1 Traps | -11 -10 -10 -10 -9 -8 ------- Run | Scr Mat Min Exi Min Mat Traps Triggered . | . . . . . . Indirectly . | . . . . . . Trap Hack Attempts . | . . . . . . Triggered . | . . . . . . Disarmed . | . . . . . . Reprogrammed . | . . . . . . Reused . | . . . . . . Traps Extracted . | . . . . . . Installed 1 | . . 1 . . . Triggered . | . . . . . . Machines | -11 -10 -10 -10 -9 -8 ---------- Run | Scr Mat Min Exi Min Mat Machines Disabled 1 | . . . . . 1 Max in Single Turn 1 | . . . . . 1 Machines Sabotaged . | . . . . . . Garrisons Compromised . | . . . . . . Overloaded Fab Kills . | . . . . . . Fab Network Shutdowns . | . . . . . . Hacking | -11 -10 -10 -10 -9 -8 --------- Run | Scr Mat Min Exi Min Mat Machines Accessed 9 | . 1 1 2 2 3 Terminals 6 | . 1 1 . 1 3 Fabricators . | . . . . . . Repair Stations . | . . . . . . Recycling Units . | . . . . . . Scanalyzers . | . . . . . . Garrison Access . | . . . . . . Total Hacks 24 | . 6 1 2 3 12 Successful 12 | . 3 . 2 2 5 Failed 12 | . 3 1 . 1 7 Catastrophic 3 | . 1 1 . . 1 Database Lockouts . | . . . . . . Manual 17 | . 6 1 1 2 7 Terminals 21 | . 6 1 . 2 12 Fabricators . | . . . . . . Repair Stations . | . . . . . . Recycling Units . | . . . . . . Scanalyzers . | . . . . . . Garrison Access . | . . . . . . Terminal Hacks 8 | . 1 . 2 2 3 Record 1 | . . . 1 . . Prototype ID Bank 1 | . . . . . 1 Open Door 1 | . . . . 1 . Level Access Points 1 | . . . . 1 . Alert Level 1 | . . . . . 1 Recall Reinforcements 2 | . 1 . . . 1 EX-Prototype ID Bank 1 | . . . 1 . . Fabricator Hacks . | . . . . . . Repair Station Hacks . | . . . . . . Recycling Unit Hacks . | . . . . . . Scanalyzer . | . . . . . . Garrison Access Hacks . | . . . . . . Unauthorized Hacks 11 | . 4 . . . 7 Terminals 4 | . 2 . . . 2 Track 1 | . 1 . . . . Botnet 3 | . 1 . . . 2 Fabricators . | . . . . . . Repair Stations . | . . . . . . Recycling Units . | . . . . . . Scanalyzers . | . . . . . . Garrison Access . | . . . . . . Data Cores Recovered . | . . . . . . Used . | . . . . . . Hacking Detections 5 | . 1 1 . . 3 Full Trace Events . | . . . . . . Feedback Events . | . . . . . . Feedback Blocked . | . . . . . . Robot Schematics Acquired . | . . . . . . Robots Built . | . . . . . . Matter . | . . . . . . Time . | . . . . . . Total Robot Build Rating . | . . . . . . Part Schematics Acquired . | . . . . . . Parts Built . | . . . . . . Matter . | . . . . . . Time . | . . . . . . Total Part Build Rating . | . . . . . . Parts Repaired . | . . . . . . Time . | . . . . . . Parts Recycled . | . . . . . . Recycled Matter . | . . . . . . Retrieved Matter . | . . . . . . Retrieved Components . | . . . . . . Parts Scanalyzed . | . . . . . . Part Schematics Acquired . | . . . . . . Parts Damaged . | . . . . . . Bothacking | -11 -10 -10 -10 -9 -8 ------------ Run | Scr Mat Min Exi Min Mat Used RIF Installer . | . . . . . . Robots Hacked . | . . . . . . Non-combat . | . . . . . . Combat . | . . . . . . Robot Hacks Applied . | . . . . . . Relay Couplers Released . | . . . . . . Robots Rewired . | . . . . . . Allies Hacked . | . . . . . . Hacks Repelled . | . . . . . . Allies | -11 -10 -10 -10 -9 -8 -------- Run | Scr Mat Min Exi Min Mat Total Allies 2 | . . . . 2 . Largest Group 2 | . . . . 2 1 Highest-Rated Group 43 | . . . . 43 12 Highest-Rated Ally 31 | . . . . 31 12 Total Orders . | . . . . . . Ally Attacks 7 | . . . . . 7 Total Damage 112 | . . . . . 112 Kills . | . . . . . . Allies Corrupted . | . . . . . . Allies Melted . | . . . . . . Intel | -11 -10 -10 -10 -9 -8 ------- Run | Scr Mat Min Exi Min Mat Robot Analysis Total . | . . . . . . Derelict Logs Recovered 3 | . . 3 . . . Drone Launches . | . . . . . . Drone Recoveries . | . . . . . . Exploration | -11 -10 -10 -10 -9 -8 ------------- Run | Scr Mat Min Exi Min Mat Turns Passed 3479 | . 231 997 890 539 822 Spaces Moved 1945 | 1 155 578 590 261 360 Core . | . . . . . . Treads . | . . . . . . Legs 1945 | 1 155 578 590 261 360 Wheels . | . . . . . . Hover . | . . . . . . Flight . | . . . . . . Fastest Speed 120 | 120 120 150 150 150 150 Average Speed 150 | 120 131 150 150 151 161 Slowest Speed 240 | 120 150 150 150 240 180 Overloaded Moves . | . . . . . . Propulsion Burnouts . | . . . . . . Robots Hopped . | . . . . . . Cave-ins Triggered 1 | . . . . 1 . Exploration Rate (%) 46 | 2 36 99 62 57 23 Regions Visited 5 Branch Regions 3 Pre-discovered Areas 2 | . . 1 1 . . Known Exits Taken 1 | . . . . 1 . Unknown Exits Taken 4 | 1 1 1 1 . . Scrap Searched 5 | . . 4 . 1 . Spaces Dug 14 | . . . . 14 . Terrain Destroyed 15 | . . 1 . 14 . Melee . | . . . . . . Projectile 5 | . . 1 . 4 . AOE 10 | . . . . 10 . Actions | -11 -10 -10 -10 -9 -8 --------- Run | Scr Mat Min Exi Min Mat Total 2369 | . 176 659 595 393 546 Wait 307 | . 12 37 2 116 140 Move 1940 | . 154 577 589 260 360 Hop . | . . . . . . Pick Up 25 | . 3 9 2 6 5 Fast Attach 5 | . 1 . 1 . 3 Attach 6 | . . 1 . 2 3 Detach . | . . . . . . Swap 9 | . 1 3 . 1 4 Drop 16 | . 2 7 1 3 3 Fire 60 | . 3 24 . 5 28 Melee . | . . . . . . Ram . | . . . . . . Kick . | . . . . . . Crush . | . . . . . . Escape Stasis . | . . . . . . Rewire . | . . . . . . Trap 1 | . . 1 . . . Miscellaneous . | . . . . . . Route ------- -11/Scrapyard -10/Materials -10/Mines (discovered 3 exits: *Mat x2 / *Exi) -10/Exiles -9/Mines (discovered 2 exits: *Mat x2) -8/Materials (discovered 3 exits: Fac / [*Sto x2]) History --------- Turn | Location | Event 1 | -11/Scrapyard | Discovered new exit (range 0) 1 | -11/Scrapyard | Entered Materials 193 | -10/Materials | Discovered new exit (range 7) 232 | -10/Materials | Entered Mines 261 | -10/Mines | Discovered new exit (range 6) 276 | -10/Mines | Deemed a non-threat by the Exiles lab entrance 283 | -10/Mines | Discovered new exit (range 5) 316 | -10/Mines | Build established: Mutant 408 | -10/Mines | Excavation squad dispatched 408 | -10/Mines | A large section of the Mines collapsed 509 | -10/Mines | Identified exit to Materials 676 | -10/Mines | Learned location of Mines (-9) 780 | -10/Mines | Learned location of 1 exit from Materials 1023 | -10/Mines | Found a hidden stash of uninstalled traps 1229 | -10/Mines | Entered Exiles 1265 | -10/Exiles | Met 8R-AWN 1291 | -10/Exiles | Met EX-HEX 1457 | -10/Exiles | Met EX-DEC 1469 | -10/Exiles | Learned location of Zion (-6) 1502 | -10/Exiles | Met EX-BIN 1532 | -10/Exiles | Aligned with FarCom system 1534 | -10/Exiles | Given EX-Vault access code 1568 | -10/Exiles | Opened EX-Vault 1603 | -10/Exiles | Warned to stay clear of 0b10 Research branches 1836 | -10/Exiles | Discovered new exit (range 10) 1978 | -10/Exiles | Found Skeleton Box 2119 | -10/Exiles | Left Exiles lab with Skeleton Box 2119 | -10/Exiles | Entered Mines 2134 | -9/Mines | Met a Derelict who couldn't figure out how to use a Trap Extractor 2520 | -9/Mines | Identified exit to Materials 2642 | -9/Mines | Crushed by falling debris 2658 | -9/Mines | Entered Materials 2658 | -8/Materials | Accompanied by 1 ally 2658 | -8/Materials | Evolved 4 slots: Propulsion x2, Utility x2 2659 | -8/Materials | Identified exit to Factory 2871 | -8/Materials | Discovered new exit (range 14) 3459 | -8/Materials | Discovered new exit (range 14) 3480 | -8/Materials | Self-destructed Last Messages --------------- 03215_ K-01 Serf cleans the Fusion Modulator. 03269_ K-01 Serf cleans the Terminal. 03281_ Destroyed Hover Unit. 03284_ O-16 Technician destroyed. 03284_ Terminal disabled. 03287_ Acquired 10 matter. 03405_ Connecting with Terminal... >>Alert(Check) Current Alert Level: Low Security >>Trojan(Botnet) Trojan loaded successfully. Testing... Terminal linked with 0 systems. Awaiting botnet instructions. 03455_ T-07 Excavator is excavating. 03459_ EXIT=FOUND 03464_ Acquired Arm. Treads. 03464_ T-07 Excavator destroyed. 03465_ S-10 Pest destroyed. 03474_ K-01 Serf collects debris. Map ----- +----------------------------------------------------+ | | | | | ???????????????????????????? | | ???????????????????????????? | | ???????????????????????????? | | ???????????????????????????? | | ???????????????????????????? | | ???????????????????????????? | | ???????????????????????????? | | ???????????????????????????? | | ???????????????????????????? | | ???????????????????????????? | | ???????????????????????????? | | ???????????????????????????? | | ???????????????????????????? | | ???????????????????????????? | | ???????????????????????????? | | ???????????????????????????? | | ???????????????????????????? | | ???????????????????????????? | | ???????????????????????????? | | ???????????????????######### | | ???????????????????# # | | ???????????????????# """ # | | ??????????????# ???# """ # | | ??????????? ## #?# """ @ # | | ?????????? #k # | | ?????????? < Ys% # | | ?????????? =#""" # | | ??????????? ###??#"R # | | ???????????????????#""" ! # | | ???????????????????# ""s # | | ?????????????????#?# # | | ???????????????### ##+###### | | ???????????????+ #????? | | ???????????????###### #????? | | ????????????????????# #????? | | ????????????????????# #????? | | ????????????????????# #????? | | ?????????######?????# #????? | | ????????##!!!!##????# #????? | | ????????#! !#????# #????? | | ????????#! !#????# #????? | | ????????# #???### ###??? | | ????????# ##### % #??? | | ?????#### T" #??? | | ?????+ " T #??? | | ?????#### #??? | | ????????#! ##### #??? | | ????????##### #???###+###??? | +----------------------------------------------------+ Best States ------------- Heat Dissipation 31 Energy Generation 15 Energy Capacity 550 Matter Stores 450 Matter Capacity 450 Sight Range 16 Terrain Scan Density 10 Evasion (%) 40 Recoil Reduction 1 Item Schematics ----------------- None Robot Schematics ------------------ None Fabricated ------------ Nothing Alien Tech Used ----------------- None Achievements -------------- None Challenges ------------ None Game ------ Seed IntegrityReflectiveExtractor Manual? 0 Play Time 00:23:20 Cumulative 214.8 hours Start 2020.03.04 @ 21:29:19 End 2020.03.07 @ 23:55:38 Sessions 3 Manual Loads 0 Difficulty Rogue Special Mode None Game No. 489 Rogue 489 Adventurer 0 Explorer 0 Win Type - Total 4 Types 3/0/0/1/0/0/0 Lore% 63 Gallery% 66 Achievement% 56 Wizard Run 0 Options --------- ASCII 0 Keyboard 0 Movement Arrows Keybinds 0 Fullscreen 1 Font 16/SmallcapsGlow Map View 75x55 Tactical HUD 1 Map Filters NONE Filters NONE Steam 1 RUN: 92b90ebc-efe3-4d53-a621-3a4c282f805c